Cogmind - Beta 11 @@@ ROGUE MODE // 2022.03.24 @ 21:00:36 Player: Nori Result: Destroyed by C-35 Carver with Carbide Saw Performance ------------- Evolutions (5) 2500 Regions Visited (10) 2000 Robots Destroyed (106) 530 Value Destroyed (3620) 3620 Prototype IDs (15) 300 Alien Tech Used (0) 0 Bonus (671) 671 TOTAL SCORE: 9621 Bonus ------- High Alert Combat Kills 322 Follower Combat Kills 49 Met Data Miner 300 Cogmind --------- Core Integrity 0/1000 Matter 205/300 Energy 88/100 System Corruption 5% Temperature Cool (0) Movement Core (50) Location -5/Factory Parts ------- > --- POWER (2) -------- (None) > --- PROPULSION (5) --- (None) > --- UTILITY (8) ------ (None) > --- WEAPON (2) ------- (None) > --- INVENTORY (5) ---- Angular Momentum Engine Light Fission Core Gravmag Array Peak State ------------ > --- POWER ------------ Neutrino Core > --- PROPULSION ------- Improved Airjet Gyrokinetic Inverter Linear Gravjet Improved Linear Gravjet Improved Linear Gravjet > --- UTILITY ---------- Small Storage Unit Advanced Signal Interpreter Layered Medium Armor Plating Hacking Suite Hacking Suite System Shield Makeshift System Shield Advanced System Shield > --- WEAPON ----------- Enhanced Gauss Cannon Improved Plasma Cutter > --- INVENTORY -------- Angular Momentum Engine Light Fission Core Energy Well Improved Matter Compressor Enhanced Gauss Cannon Enhanced Gauss Cannon Enhanced Gauss Cannon [Rating: 83] Favorites ----------- Power Light Fission Core Engine Light Ion Engine Power Core Light Fission Core Propulsion Aluminum Leg Treads Advanced Treads Leg Aluminum Leg Hover Unit Gravmag Array Utility Hacking Suite Device Improved Heat Sink Storage Medium Storage Unit Processor Advanced Targeting Computer Hackware Hacking Suite Protection Hardened Medium Armor Plating Weapon Enhanced Autogun Energy Gun Beam Rifle Energy Cannon Proton Cannon Ballistic Gun Enhanced Autogun Ballistic Cannon Enhanced Gauss Cannon Launcher Advanced EMP Blaster Special Weapon Improved Plasma Cutter Build | -11 -10 -9 -8 -7 -6 -6 -6 -6 -5 -5 ------- Run | Scr Mat Mat Mat Fac Fac Low Low Dat Pro Fac Slots Evolved 10 | . . 2 2 2 2 . . . . 2 Power 1 | . . . . . 1 . . . . . Propulsion 3 | . . 1 1 . . . . . . 1 Utility 6 | . . 1 1 2 1 . . . . 1 Weapon . | . . . . . . . . . . . Parts Attached 143 | 6 3 12 39 11 32 4 6 2 3 25 Power 22 | 1 . 2 4 3 6 1 . 1 . 4 Engine 5 | 1 . 2 . . 1 1 . . . . Core 17 | . . . 4 3 5 . . 1 . 4 Reactor . | . . . . . . . . . . . Propulsion 43 | 2 . 3 16 3 10 . 2 . 2 5 Treads 4 | . . . 4 . . . . . . . Leg 26 | 2 . 3 12 3 6 . . . . . Wheel . | . . . . . . . . . . . Hover 13 | . . . . . 4 . 2 . 2 5 Flight . | . . . . . . . . . . . Utility 40 | 1 1 4 9 3 9 1 3 1 1 7 Device 11 | . 1 . 3 1 4 . 1 . . 1 Storage 7 | 1 . 1 1 . . . . 1 1 2 Processor 6 | . . 1 3 . 1 . 1 . . . Hackware 5 | . . . . . 1 . 1 . . 3 Protection 11 | . . 2 2 2 3 1 . . . 1 Artifact . | . . . . . . . . . . . Weapon 38 | 2 2 3 10 2 7 2 1 . . 9 Energy Gun 7 | 1 1 . 3 1 1 . . . . . Energy Cannon 1 | . . . . . 1 . . . . . Ballistic Gun 19 | 1 1 3 6 1 4 2 1 . . . Ballistic Cannon 8 | . . . . . . . . . . 8 Launcher 2 | . . . 1 . 1 . . . . . Special Weapon 1 | . . . . . . . . . . 1 Impact Weapon . | . . . . . . . . . . . Slashing Weapon . | . . . . . . . . . . . Piercing Weapon . | . . . . . . . . . . . Special Melee Weapon . | . . . . . . . . . . . Unidentified Prototypes 4 | . . 1 1 . . . . . 1 1 Corrupted Parts 5 | . . . . . 5 . . . . . System Corruption 34 | . . . . . 34 . . . . . Parts Lost 66 | . . 3 21 3 16 1 11 . 3 8 Power 12 | . . 2 4 2 1 1 2 . . . Propulsion 23 | . . . 9 1 5 . 1 . 3 4 Utility 18 | . . 1 5 . 4 . 5 . . 3 Weapon 13 | . . . 3 . 6 . 3 . . 1 Highest Loss Streak 12 | . . 1 12 1 4 1 9 . 2 4 To Critical Strikes . | . . . . . . . . . . . Average Slot Usage (%) 79 | . 99 98 86 98 80 70 78 53 51 56 Engine 2 | . 14 10 1 . . . 4 . . . Core 4 | . . . 5 6 8 6 6 6 6 3 Leg 14 | . 28 32 27 29 9 . . . . . Hover 6 | . . . . . 7 13 12 13 11 13 Device 8 | . 13 6 7 12 13 13 8 . . . Storage 7 | . 14 11 9 7 6 6 5 6 5 4 Processor 10 | . . 11 11 15 13 13 12 13 13 7 Hackware 6 | . . . . . 6 6 8 13 13 18 Protection 3 | . . 4 3 9 4 2 6 . . 2 Energy Gun 2 | . 14 . 2 7 1 . . . . . Ballistic Gun 8 | . 14 21 14 7 6 6 10 . . . Naked Turns 16 | . . . . . . . . . . 16 Heaviest Build 45 | 11 16 22 30 37 40 30 30 30 35 45 Greatest Support 66 | 20 20 30 66 45 65 40 40 40 40 51 Greatest Overweight (x) 1 | . . 1 1 1 1 . 1 . 1 1 Average Overweight (x) . | . . . . . . . . . . . Largest Inventory Capacity 15 | 8 8 10 10 10 10 10 10 15 15 8 Average Capacity 9 | 6 8 9 10 10 10 10 9 14 12 6 Most Carried 10 | 5 8 10 8 10 10 10 10 4 3 8 Average Carried 6 | 2 6 7 5 7 8 9 8 3 1 5 Final Capacity 15 | 8 8 10 10 10 10 10 5 15 5 5 Final Carried 10 | 2 8 9 6 10 8 10 5 3 . 4 Class Distribution -------------------- 41% | Mutant 29% | Scavenger-Mutant 22% | Hacker-Mutant 5% | Derelict-Mutant Dominant Class ---------------- Mutant | -10/Materials Mutant | -9/Materials Scavenger-Mutant | -8/Materials Scavenger-Mutant | -7/Factory Mutant | -6/Factory Mutant | -6/Lower Caves Derelict-Mutant | -6/Lower Caves Hacker-Mutant | -6/Data Miner Hacker-Mutant | -5/Proximity Caves Hacker-Mutant | -5/Factory Resources | -11 -10 -9 -8 -7 -6 -6 -6 -6 -5 -5 ----------- Run | Scr Mat Mat Mat Fac Fac Low Low Dat Pro Fac Matter Collected 3654 | 182 151 654 1026 218 623 152 75 . 48 525 Remotely . | . . . . . . . . . . . Salvage Created 4383 | . 151 919 1650 497 793 . . . . 373 Parts 203 | . 5 61 72 17 32 . . . . 16 Haulers Intercepted 4 | . . 1 1 . . . . . . 2 Recyclers Shooed 3 | . . . 3 . . . . . . . Parts Field Recycled . | . . . . . . . . . . . Retrieved Matter . | . . . . . . . . . . . Parts Self-Destructed 6 | . . . . . . . 1 . 5 . Prevented 4 | . . . . . . . 4 . . . Kills | -11 -10 -9 -8 -7 -6 -6 -6 -6 -5 -5 ------- Run | Scr Mat Mat Mat Fac Fac Low Low Dat Pro Fac Combat Hostiles Destroyed 81 | . 3 19 28 8 14 . . . . 9 Guns 66 | . 3 19 28 7 9 . . . . . Cannons 11 | . . . . . 2 . . . . 9 AOE 1 | . . . . . 1 . . . . . Classes Destroyed 15 | . 2 6 5 . . . . . . 2 Worker 9 | . . 2 5 1 1 . . . . . Builder 2 | . . 1 . . 1 . . . . . Hauler 4 | . . 1 1 . . . . . . 2 Recycler 4 | . . . 4 . . . . . . . Operator 2 | . . . 1 . 1 . . . . . Watcher 4 | . 1 2 . 1 . . . . . . Swarmer 18 | . . 4 4 . 7 . . . . 3 Cutter 4 | . . . . . . . . . . 4 Grunt 40 | . 3 10 16 6 5 . . . . . Brawler 3 | . . 2 . 1 . . . . . . Duelist 1 | . . . 1 . . . . . . . Sentry 8 | . . 3 4 . 1 . . . . . Specialist 2 | . . . 2 . . . . . . . Hunter 3 | . . . 1 1 1 . . . . . Programmer 2 | . . . . . . . . . . 2 Best Kill Streak 16 | . 3 7 16 4 8 . . . . 3 Combat Bots Only 7 | . 2 5 7 4 7 . . . . 3 Max Kills in Single Turn 2 | . 1 2 2 1 2 . . . . 1 Gunslinging 1 | . . . 1 . . . . . . . Exploded 1 | . . . . . 1 . . . . . Melee . | . . . . . . . . . . . Uniques/NPCs Destroyed . | . . . . . . . . . . . Combat | -11 -10 -9 -8 -7 -6 -6 -6 -6 -5 -5 -------- Run | Scr Mat Mat Mat Fac Fac Low Low Dat Pro Fac Damage Taken 11453 | . 156 588 3284 833 2387 299 1470 . 265 2171 Core 2323 | . 30 128 452 81 204 140 259 . 26 1003 Absorbed by Shields . | . . . . . . . . . . . Core Remaining (%) 64 | 100 88 68 17 88 . . . . 26 . Volleys Fired 338 | . 19 58 108 32 63 . 6 . . 52 Largest 2 | . 2 2 2 2 2 . 2 . . 2 Hottest 114 | . 79 50 112 84 103 . 48 . . 114 Shots Fired 608 | . 38 117 203 64 109 . 10 . . 67 Gun 528 | . 38 117 203 64 96 . 10 . . . Cannon 67 | . . . . . 7 . . . . 60 Launcher 6 | . . . . . 6 . . . . . Special 7 | . . . . . . . . . . 7 Kinetic 502 | . 19 117 181 32 83 . 10 . . 60 Thermal 93 | . 19 . 22 32 13 . . . . 7 Explosive . | . . . . . . . . . . . Electromagnetic 13 | . . . . . 13 . . . . . Robot Hit Streak 26 | . 6 9 12 13 26 . 4 . . 8 Robot Miss Streak 9 | . 3 5 7 3 4 . 5 . . 9 Penetration Max 1 | . . . . 1 1 . . . . 1 Secondary Targets 16 | . . 5 6 4 1 . . . . . Max Gunslinging Chain 1 | . . 1 1 1 1 . . . . . Shots Hit Robots 403 | . 23 68 139 50 82 . 8 . . 33 Core Hits 178 | . 8 31 66 21 31 . 5 . . 16 Critical Kills 1 | . . . 1 . . . . . . . Critical Parts Destroyed 6 | . . 1 2 1 2 . . . . . Critical Strikes 21 | . . 1 5 5 3 . . . . 7 Burn 6 | . . . 2 3 1 . . . . . Destroy 8 | . . 1 3 2 2 . . . . . Blast 7 | . . . . . . . . . . 7 Melee Attacks . | . . . . . . . . . . . Impact . | . . . . . . . . . . . Slashing . | . . . . . . . . . . . Piercing . | . . . . . . . . . . . Sneak Attacks . | . . . . . . . . . . . Combat Hostiles . | . . . . . . . . . . . Follow-up Attacks . | . . . . . . . . . . . Damage Inflicted 8381 | . 320 1272 2485 901 1801 . 128 . . 1474 Guns 6364 | . 320 1272 2427 901 1327 . 117 . . . Cannons 1487 | . . . . . 137 . . . . 1350 Explosions 395 | . . . 58 . 337 . . . . . Melee . | . . . . . . . . . . . Ramming 87 | . . . . . . . 11 . . 76 Kinetic 6792 | . 148 1272 2167 556 1182 . 117 . . 1350 Thermal 1010 | . 172 . 260 345 185 . . . . 48 Explosive 58 | . . . 58 . . . . . . . Electromagnetic 434 | . . . . . 434 . . . . . Impact . | . . . . . . . . . . . Slashing . | . . . . . . . . . . . Piercing . | . . . . . . . . . . . Highest Corruption 33 | . 2 7 . 1 31 33 33 33 33 5 Average Corruption 20 | . 2 6 . 1 23 31 33 33 33 4 Corruption Purged 5 | . . . . . 5 . . . . . Corruption Blocked . | . . . . . . . . . . . Effects 138 | . 5 17 . . 47 28 23 2 8 8 Message Errors 41 | . 1 3 . . 12 13 6 1 2 3 Matter Fused 36 | . 3 7 . . 13 2 4 1 5 1 Heat Flow Errors 20 | . . 2 . . 7 4 4 . . 3 Energy Discharges 11 | . . 1 . . 2 4 4 . . . Parts Rejected 3 | . . 1 . . 1 . 1 . . . Data Loss (minor) 12 | . 1 2 . . 5 3 1 . . . Data Loss (major) 3 | . . . . . 2 1 . . . . Misfires 2 | . . 1 . . . . . . . 1 Alerts 2 | . . . . . 1 . . . 1 . Misdirections 6 | . . . . . 3 1 2 . . . Weapon Failures 2 | . . . . . 1 . 1 . . . Overload Shots . | . . . . . . . . . . . Overflow Damage 156 | . . . 72 . 3 . . . . 81 Projectiles 81 | . . . . . . . . . . 81 Explosions 75 | . . . 72 . 3 . . . . . Melee . | . . . . . . . . . . . Knockbacks 12 | . . . . . . . 1 . . 11 Impact 1 | . . . . . . . 1 . . . Kinetic 10 | . . . . . . . . . . 10 Secondary 1 | . . . . . . . . . . 1 Self-Inflicted Damage 258 | . . . 153 . 66 . 5 . . 34 Shots 5 | . . . 2 . 3 . . . . . Rammed 23 | . . . . . . . 1 . . 22 Targets Rammed 23 | . . . . . . . 1 . . 22 Kicked . | . . . . . . . . . . . Crushed . | . . . . . . . . . . . Highest Temperature 438 | . 6 291 323 66 280 161 284 . . 438 Average Temperature 118 | . 4 63 173 21 96 83 130 . . 138 Received Heat Transfer 3009 | . 87 264 1521 306 504 . 261 . 12 54 Effects 11 | . . . 4 . . . 4 . . 3 Energy Bleed 2 | . . . . . . . 1 . . 1 Interference 9 | . . . 4 . . . 3 . . 2 Siege Activations . | . . . . . . . . . . . Robots Corrupted 1 | . . . . . 1 . . . . . Combat Hostiles 1 | . . . . . 1 . . . . . Parts Fried 1 | . . . . . 1 . . . . . Impact Corruptions 1 | . . . . . . . . . . 1 Robots Melted 2 | . . . . 1 1 . . . . . Combat Hostiles 2 | . . . . 1 1 . . . . . Parts Melted 4 | . 1 . 1 1 1 . . . . . Heat Transferred 3023 | . 444 . 814 1110 544 . . . . 111 Parts Sabotaged . | . . . . . . . . . . . Parts Stolen . | . . . . . . . . . . . Parts Stripped . | . . . . . . . . . . . Power Chain Reactions 4 | . . . . . 4 . . . . . Missiles Intercepted . | . . . . . . . . . . . Alert | -11 -10 -9 -8 -7 -6 -6 -6 -6 -5 -5 ------- Run | Scr Mat Mat Mat Fac Fac Low Low Dat Pro Fac Peak Influence 701 | . 87 483 701 570 502 . . . . 331 Initial 318 | . . . 179 318 191 . . . . . Average 246 | . 17 228 490 423 285 . . . . 80 Maximum Alert Level 3 | . . 2 3 2 2 . . . . 1 Low Security (%) 44 | 100 100 35 8 . 24 . . . . 89 Level 1 33 | . . 51 15 47 66 . . . . 10 Level 2 21 | . . 12 72 52 8 . . . . . Level 3 . | . . . 3 . . . . . . . Level 4 . | . . . . . . . . . . . Level 5 . | . . . . . . . . . . . High Security . | . . . . . . . . . . . Max Security . | . . . . . . . . . . . Squads Dispatched 25 | . 2 2 7 3 4 . . . . 7 Investigation 4 | . 1 . . . 1 . . . . 2 Extermination 2 | . . . . . 1 . . . . 1 Reinforcement 16 | . 1 2 6 3 . . . . . 4 Assault 1 | . . . . . 1 . . . . . Garrison 2 | . . . 1 . 1 . . . . . Intercept . | . . . . . . . . . . . Searches Triggered . | . . . . . . . . . . . Data Miner Redirects 2 | . . . . . . . . . . 2 Construction Impeded . | . . . . . . . . . . . Haulers Reinforced 1 | . . . . . . . . . . 1 Active Scanning Responses . | . . . . . . . . . . . Cargo Convoy Interrupts 1 | . . . . . . . . . . 1 Stealth | -11 -10 -9 -8 -7 -6 -6 -6 -6 -5 -5 --------- Run | Scr Mat Mat Mat Fac Fac Low Low Dat Pro Fac Distress Signals 11 | . . 3 5 1 2 . . . . . Communications Jammed . | . . . . . . . . . . . Distress Signals . | . . . . . . . . . . . Times Spotted 195 | . 7 34 41 13 30 5 22 . 3 40 Peak Tracking Total 12 | . 3 9 10 4 7 4 10 . 2 12 Tactical Retreats 28 | . . 4 1 . 3 3 5 . 1 11 Traps | -11 -10 -9 -8 -7 -6 -6 -6 -6 -5 -5 ------- Run | Scr Mat Mat Mat Fac Fac Low Low Dat Pro Fac Traps Triggered 11 | . 2 2 2 1 2 1 . . . 1 Indirectly . | . . . . . . . . . . . Trap Hack Attempts . | . . . . . . . . . . . Triggered . | . . . . . . . . . . . Disarmed . | . . . . . . . . . . . Reprogrammed . | . . . . . . . . . . . Reused . | . . . . . . . . . . . Traps Extracted . | . . . . . . . . . . . Installed . | . . . . . . . . . . . Triggered 2 | . . . . . . . 1 . . 1 Machines | -11 -10 -9 -8 -7 -6 -6 -6 -6 -5 -5 ---------- Run | Scr Mat Mat Mat Fac Fac Low Low Dat Pro Fac Machines Disabled 14 | . . . 4 2 6 . . . . 2 Max in Single Turn 2 | . . . 1 1 2 . . . . 1 Garrison Access 2 | . . . 1 . 1 . . . . . Machines Sabotaged . | . . . . . . . . . . . Garrisons Compromised 1 | . . . . . . . . . . 1 Overloaded Fab Kills . | . . . . . . . . . . . Hacking | -11 -10 -9 -8 -7 -6 -6 -6 -6 -5 -5 --------- Run | Scr Mat Mat Mat Fac Fac Low Low Dat Pro Fac Machines Accessed 14 | . . . 1 1 2 1 . 4 . 5 Terminals 3 | . . . . . . . . . . 3 Fabricators 2 | . . . . . 1 . . . . 1 Repair Stations . | . . . . . . . . . . . Recycling Units . | . . . . . . . . . . . Scanalyzers 2 | . . . . . 1 . . . . 1 Garrison Access 2 | . . . 1 1 . . . . . . Total Hacks 55 | . . . 1 2 7 1 . 31 . 13 Successful 52 | . . . 1 . 7 1 . 31 . 12 Failed 3 | . . . . 2 . . . . . 1 Catastrophic . | . . . . . . . . . . . Database Lockouts . | . . . . . . . . . . . Manual 1 | . . . . . . . . . . 1 Terminals 7 | . . . . . . . . . . 7 Fabricators 4 | . . . . . 2 . . . . 2 Repair Stations . | . . . . . . . . . . . Recycling Units . | . . . . . . . . . . . Scanalyzers 9 | . . . . . 5 . . . . 4 Garrison Access 3 | . . . 1 2 . . . . . . Terminal Hacks 38 | . . . . . . 1 . 31 . 6 Record 14 | . . . . . . . . 11 . 3 Part Schematic 10 | . . . . . . . . 10 . . Robot Schematic 7 | . . . . . . . . 7 . . Prototype ID Bank 3 | . . . . . . . . 3 . . Open Door 1 | . . . . . . 1 . . . . Open DSF 2 | . . . . . . . . . . 2 Investigation Status 1 | . . . . . . . . . . 1 Fabricator Hacks 4 | . . . . . 2 . . . . 2 Load Schematic 2 | . . . . . 1 . . . . 1 Build 2 | . . . . . 1 . . . . 1 Repair Station Hacks . | . . . . . . . . . . . Recycling Unit Hacks . | . . . . . . . . . . . Scanalyzer 9 | . . . . . 5 . . . . 4 Insert Component 4 | . . . . . 2 . . . . 2 Analyze 5 | . . . . . 3 . . . . 2 Garrison Access Hacks 1 | . . . 1 . . . . . . . Seal Access 1 | . . . 1 . . . . . . . Unauthorized Hacks . | . . . . . . . . . . . Terminals . | . . . . . . . . . . . Fabricators . | . . . . . . . . . . . Repair Stations . | . . . . . . . . . . . Recycling Units . | . . . . . . . . . . . Scanalyzers . | . . . . . . . . . . . Garrison Access . | . . . . . . . . . . . Data Cores Recovered 1 | . . . . . 1 . . . . . Used . | . . . . . . . . . . . Hacking Detections 4 | . . . . 1 1 . . . . 2 Full Trace Events 2 | . . . . . 1 . . . . 1 Feedback Events . | . . . . . . . . . . . Feedback Blocked . | . . . . . . . . . . . Robot Schematics Acquired 7 | . . . . . . . . 7 . . Robots Built . | . . . . . . . . . . . Authchips . | . . . . . . . . . . . Time . | . . . . . . . . . . . Total Robot Build Rating . | . . . . . . . . . . . Part Schematics Acquired 14 | . . . . . 2 . . 10 . 2 Parts Built 2 | . . . . . . . . . . 2 Authchips . | . . . . . . . . . . . Time 212 | . . . . . 95 . . . . 117 Total Part Build Rating 14 | . . . . . . . . . . 14 Parts Repaired . | . . . . . . . . . . . Time . | . . . . . . . . . . . Parts Recycled . | . . . . . . . . . . . Recycled Matter . | . . . . . . . . . . . Retrieved Matter . | . . . . . . . . . . . Retrieved Components . | . . . . . . . . . . . Parts Scanalyzed 4 | . . . . . 2 . . . . 2 Part Schematics Acquired 4 | . . . . . 2 . . . . 2 Parts Damaged 1 | . . . . . 1 . . . . . Bothacking | -11 -10 -9 -8 -7 -6 -6 -6 -6 -5 -5 ------------ Run | Scr Mat Mat Mat Fac Fac Low Low Dat Pro Fac Used RIF Installer . | . . . . . . . . . . . Robots Hacked . | . . . . . . . . . . . Non-combat . | . . . . . . . . . . . Combat . | . . . . . . . . . . . Robot Hacks Applied . | . . . . . . . . . . . Relay Couplers Released . | . . . . . . . . . . . Fabnet Peak Effective % . | . . . . . . . . . . . Robots Rewired . | . . . . . . . . . . . Allies Hacked . | . . . . . . . . . . . Hacks Repelled . | . . . . . . . . . . . Allies | -11 -10 -9 -8 -7 -6 -6 -6 -6 -5 -5 -------- Run | Scr Mat Mat Mat Fac Fac Low Low Dat Pro Fac Total Allies 1 | . . . . . . . . . 1 . Largest Group 1 | . . . . . . . . . 1 . Highest-Rated Group 96 | . . . . . . . . . 96 . Highest-Rated Ally 96 | . . . . . . . . . 96 . Total Orders . | . . . . . . . . . . . Ally Attacks 7 | . . . . . . . . . 7 . Total Damage 211 | . . . . . . . . . 211 . Kills 1 | . . . . . . . . . 1 . Allies Corrupted . | . . . . . . . . . . . Allies Melted . | . . . . . . . . . . . Intel | -11 -10 -9 -8 -7 -6 -6 -6 -6 -5 -5 ------- Run | Scr Mat Mat Mat Fac Fac Low Low Dat Pro Fac Robot Analysis Total . | . . . . . . . . . . . Derelict Logs Recovered 4 | . . . . . . 2 . . 2 . Drone Launches . | . . . . . . . . . . . Drone Recoveries . | . . . . . . . . . . . Exploration | -11 -10 -9 -8 -7 -6 -6 -6 -6 -5 -5 ------------- Run | Scr Mat Mat Mat Fac Fac Low Low Dat Pro Fac Turns Passed 5663 | 56 474 559 756 511 1114 501 354 49 163 1126 Spaces Moved 5299 | 41 323 306 342 317 987 765 518 84 245 1371 Core 26 | 19 . . . . . . . . . 7 Treads 12 | . . . 12 . . . . . . . Legs 1556 | 22 323 306 330 317 258 . . . . . Wheels . | . . . . . . . . . . . Hover 3705 | . . . . . 729 765 518 84 245 1364 Flight . | . . . . . . . . . . . Fastest Speed 30 | 50 120 120 120 120 56 56 56 56 56 30 Average Speed 73 | 87 120 123 121 120 74 56 56 56 63 46 Slowest Speed 225 | 120 120 190 225 190 190 56 110 56 110 110 Overloaded Moves . | . . . . . . . . . . . Propulsion Burnouts . | . . . . . . . . . . . Robots Hopped . | . . . . . . . . . . . Cave-ins Triggered . | . . . . . . . . . . . Exploration Rate (%) 44 | 3 67 35 40 10 35 85 64 70 49 33 Regions Visited 10 Branch Regions 4 Pre-discovered Areas 2 | . . . . . . 1 . 1 . . Known Exits Taken 7 | . . . 1 1 1 1 1 1 1 . Unknown Exits Taken 3 | 1 1 1 . . . . . . . . Scrap Searched 15 | . . . . . . 4 10 . 1 . Spaces Dug 11 | . . . . . . . . . . 11 Terrain Destroyed 48 | . . . 19 . 5 . . . . 24 Melee . | . . . . . . . . . . . Projectile 24 | . . . . . . . . . . 24 AOE 24 | . . . 19 . 5 . . . . . Terrain Rammed . | . . . . . . . . . . . Walls Destroyed . | . . . . . . . . . . . Machines Disabled . | . . . . . . . . . . . Actions | -11 -10 -9 -8 -7 -6 -6 -6 -6 -5 -5 --------- Run | Scr Mat Mat Mat Fac Fac Low Low Dat Pro Fac Total 6628 | 61 374 424 548 392 1296 837 569 85 254 1788 Wait 613 | 7 13 21 17 15 160 63 35 . 4 278 Move 5289 | 40 322 305 341 316 986 764 517 83 244 1371 Hop . | . . . . . . . . . . . Pick Up 157 | 8 12 17 34 13 35 6 3 . 1 28 Fast Attach . | . . . . . . . . . . . Attach 112 | 6 1 6 30 4 26 4 5 2 3 25 Detach 6 | . . . . . . . . . . 6 Swap 31 | . 2 6 9 7 6 . 1 . . . Drop 59 | . 5 11 9 5 20 . 1 . 2 6 Fire 338 | . 19 58 108 32 63 . 6 . . 52 Melee . | . . . . . . . . . . . Ram 23 | . . . . . . . 1 . . 22 Kick . | . . . . . . . . . . . Crush . | . . . . . . . . . . . Escape Stasis . | . . . . . . . . . . . Rewire . | . . . . . . . . . . . Trap . | . . . . . . . . . . . Miscellaneous . | . . . . . . . . . . . Route ------- -11/Scrapyard -10/Materials (discovered 2 exits: [*Mat] / [*Min]) -9/Materials -8/Materials -7/Factory -6/Factory -6/Lower Caves -6/Lower Caves -6/Data Miner -5/Proximity Caves -5/Factory (discovered 2 exits: *Fac / *Upp) History --------- Turn | Location | Event 11 | -11/Scrapyard | Discovered new exit (range 14) 57 | -11/Scrapyard | Entered Materials 311 | -10/Materials | Build established: Mutant 481 | -10/Materials | Discovered new exit (range 12) 513 | -10/Materials | Discovered new exit (range 15) 531 | -10/Materials | Entered another Materials area 531 | -9/Materials | Evolved 2 slots: Propulsion x1, Utility x1 1058 | -9/Materials | Discovered new exit (range 20) 1090 | -9/Materials | Entered another Materials area 1090 | -8/Materials | Evolved 2 slots: Propulsion x1, Utility x1 1193 | -8/Materials | Garrison activated, responded to threat 1293 | -8/Materials | Lost 4 parts (1p1n2u) 1306 | -8/Materials | Destroyed 7 combat bots 1459 | -8/Materials | Lost 3 parts (1p2n) 1593 | -8/Materials | Build established: Scavenger-Mutant 1645 | -8/Materials | Core integrity fell below 50% 1699 | -8/Materials | Destroyed 7 combat bots 1714 | -8/Materials | Core integrity fell below 20% 1738 | -8/Materials | Lost 12 parts (2p5n2u3w) 1840 | -8/Materials | Discovered new exit (range 5) 1845 | -8/Materials | Identified exit to Factory 1846 | -8/Materials | Entered Factory 1846 | -7/Factory | Evolved 2 slots: Utility x2 2334 | -7/Factory | Discovered new exit (range 8) 2354 | -7/Factory | Identified exit to Factory 2357 | -7/Factory | Entered another Factory area 2357 | -6/Factory | Evolved 2 slots: Power x1, Utility x1 2556 | -6/Factory | Lost 3 parts (3n) 2578 | -6/Factory | System corruption reached 10% 2599 | -6/Factory | Lost 3 parts (1u2w) 2673 | -6/Factory | Garrison activated, responded to threat 2724 | -6/Factory | Lost 4 parts (1p1n2w) 2769 | -6/Factory | Lost 3 parts (1n1u1w) 3139 | -6/Factory | Build established: Mutant 3402 | -6/Factory | Destroyed 7 combat bots 3453 | -6/Factory | Discovered new exit (range 14) 3464 | -6/Factory | System corruption reached 30% 3470 | -6/Factory | Identified exit to Lower Caves 3471 | -6/Factory | Entered Lower Caves 3545 | -6/Lower Caves | Learned location of 1 exit from Proximity Caves 3951 | -6/Lower Caves | Encountered a Warlord checkpoint 3959 | -6/Lower Caves | Learned location of Extension (-6) 3963 | -6/Lower Caves | Discovered new exit (range 4) 3964 | -6/Lower Caves | Identified exit to Lower Caves 3972 | -6/Lower Caves | Entered another Lower Caves area 4157 | -6/Lower Caves | Core integrity fell below 50% 4290 | -6/Lower Caves | Attracted the attention of an 0b10 base 4320 | -6/Lower Caves | Discovered new exit (range 12) 4324 | -6/Lower Caves | Spotted B-75 Beast 4326 | -6/Lower Caves | Identified exit to Data Miner 4326 | -6/Lower Caves | Entered Data Miner 4328 | -6/Data Miner | Discovered new exit (range 6) 4331 | -6/Data Miner | Identified exit to Proximity Caves 4339 | -6/Data Miner | Met Data Miner 4350 | -6/Data Miner | Learned location of Section 7 (-2) 4350 | -6/Data Miner | Acquired the access code to Warlord's prototype stash 4357 | -6/Data Miner | Lost 9 parts (2p1n3u3w) 4359 | -6/Data Miner | Received God Mode back door access code from Data Miner 4375 | -6/Data Miner | Entered Proximity Caves 4376 | -5/Proximity Caves | Identified exit to Factory 4402 | -5/Proximity Caves | Escorted by Enhanced Grunt 4436 | -5/Proximity Caves | Learned Factory non-interactive machine intel 4489 | -5/Proximity Caves | Spotted B-75 Beast 4538 | -5/Proximity Caves | Entered Factory 4538 | -5/Factory | Evolved 2 slots: Propulsion x1, Utility x1 4539 | -5/Factory | Loaded intel: 180 non-interactive machine locations 4562 | -5/Factory | Build established: Hacker-Mutant 4800 | -5/Factory | Incoming investigation squad redirected 4969 | -5/Factory | Incoming investigation squad redirected 5019 | -5/Factory | Discovered new exit (range 16) 5037 | -5/Factory | Identified exit to Upper Caves 5068 | -5/Factory | Fabricated Imp. Linear Gravjet? 5291 | -5/Factory | Cargo convoy interrupted 5446 | -5/Factory | Discovered new exit (range 4) 5447 | -5/Factory | Identified exit to Factory 5644 | -5/Factory | Core integrity fell below 50% 5656 | -5/Factory | Core integrity fell below 20% 5664 | -5/Factory | Destroyed by C-35 Carver with Carbide Saw Last Messages --------------- 05641_ U-05 Engineer builds a Wall. 05642_ Slammed into C-35 Carver. 05643_ Sml. Storage Unit destroyed. 05644_ Slammed into C-35 Carver. 05644_ System Shield severed. 05645_ Slammed into C-35 Carver. 05645_ Broken Adv. Signal Interpreter severed. 05646_ Slammed into C-35 Carver. 05650_ R-10 Processor collects Neutrino Core. 05652_ System corrupted: Heat flow error (+288). 05653_ Acquired 21 matter. 05654_ Dropped Imp. Matter Compressor. 05655_ Acquired Enh. Gauss Cannon. 05658_ Enh. Gauss Cannon severed. 05659_ Acquired Enh. Gauss Cannon. 05661_ C-35 Carver destroyed. 05661_ Enh. Gauss Cannon severed. 05662_ Acquired 35 matter. 05662_ K-01 Serf collects debris. 05663_ Slammed into C-35 Carver. Map ----- +----------------------------------------------------+ | # # #??????????? | | # + #??????????? | | + # #??????????? | | ### ######## T# # #??????????? | | ??# #??????#### # #??????????? | | ???# #?????????# ##############??????????? | | ???# #?????????# # ??????????????? | | ????#!####??????# # ??????????????? | | ???##+########### # ?????????????? | | ##???## ! !! # # """ """ ???????????? | | ?????## ! % # # """ """ #??????????? | | ?????## # # ] """ """ #??????????? | | ??????# # # #??????????? | | ??????# # # ! """ """ #??????????? | | ??????# # # """ """ #??????????? | | ??????# + + """ """ #??????????? | | ??# # # #??????????? | | + # # #??????????? | | ## # #####################???? | | ## # #??? | | ## # #??? | | ###############% #??? | | %% #??? | | ????####### ]==! ^ #??? | | ????????????###/#####;u########### #??? | | ???????????????#*# @c] # ??# ###? | | ????????????????#!#ccc= """ ##??# #? | | #####+#####???????#!#c%!/ "%""" #???# #? | | ## #???????#]#c%k """ #???# < #? | | ##! #???????#=# #???# #? | | ## ######??# # #???# #? | | + """"""?# #??# # #?######+##### | | ## # """"""?# #??#!# #?# | | # # """"""?# #??# #H " "#?# """ """ | | # + """"""?#! #### # "#?# """ """ | | # ## # + + ! """### """ """ | | # ## # # #### # " | | # #####+##### # #??################ """ """ | | # #???# #???# ! # #???????????###???# """ """ | | # ##### #???# # #????########?????# """ """ | | # #???###### #??? #?????# | | ## #??????### ###? #?????# | | # ######## # #?????# | | # # #?????# | | + + #?????############ | | # # !!!#????????????????? | | #######=[####### # !!!#????????????????? | | ###" = #?#######? !! #????????????????? | | + + """[""" #?????????#########????????????????? | | #### """ """ #??????????????????????????????????? | +----------------------------------------------------+ Best States ------------- Heat Dissipation 56 Coolant Potential 80 Energy Generation 32 Energy Capacity 660 Matter Stores 359 Matter Capacity 600 Sight Range 20 Robot Scan Range 16 Terrain Scan Range 20 Terrain Scan Density 10 Armor Coverage 450 Resistance: EM 15 Weapon Cycling 15 Evasion (%) 59 Targeting Accuracy 8 Recoil Reduction 4 Offensive Hacking 20 Defensive Hacking 35 Item Schematics ----------------- Imp. Gravmag System | -6/Factory | Scanalyzed Beam Rifle | -6/Factory | Scanalyzed Combat Drone Bay | -6/Data Miner | Free Lgt. Regenerative Plating | -6/Data Miner | Free Enh. Flexi-carbon Leg | -6/Data Miner | Free Imp. Energy Well | -6/Data Miner | Free Imp. KE Penetrator | -6/Data Miner | Free Imp. Linear Gravjet | -6/Data Miner | Free Adv. Thermal Generator | -6/Data Miner | Free Force Lance | -6/Data Miner | Free Adv. Medium Treads | -6/Data Miner | Free Nova Cannon | -6/Data Miner | Free Energy Well | -5/Factory | Scanalyzed Neutrino Core | -5/Factory | Scanalyzed Robot Schematics ------------------ S-27 Virus | -6/Data Miner | Free M-22 Extractor | -6/Data Miner | Free Y-64 Sentinel | -6/Data Miner | Free E-15 Imp | -6/Data Miner | Free W-44 Eye | -6/Data Miner | Free G-50 Soldier | -6/Data Miner | Free A-27 Freighter | -6/Data Miner | Free Fabricated ------------ Imp. Linear Gravjet | x2 | -5/Factory Alien Tech Used ----------------- None Achievements -------------- None Challenges ------------ None Game ------ Seed StructuralGyrokineticCutter Manual? 0 Play Time 01:42:03 Cumulative 121.3 hours Start 2022.03.23 @ 20:10:58 End 2022.03.24 @ 21:00:36 Sessions 5 Manual Loads 0 Difficulty Rogue Special Mode None Game No. 73 Rogue 73 Adventurer 0 Explorer 0 Win Type - Total 2 Types 0/0/0/2/0/0/0/0/0 Lore% 30 Gallery% 55 Achievement% 43 Wizard Run 0 Options --------- ASCII 0 Keyboard 0 Movement Numpad Keybinds 0 Fullscreen 2 Font 20/SmallcapsGlow Map View 66x50 Tactical HUD 1 Map Filters NONE Filters NONE Steam 1 RUN: 7b77cd4e-ce3e-425a-b8df-14ff8446416f